fUSD/lending_fUSD_20250720
["ID","MTS","AMOUNT","RATE_DAILY","PERIOD"]
[373554345,1753039190709,480.0,0.00030136,120]
[373554346,1753039191044,480.0,0.00030136,120]
[373554347,1753039191201,539.36,0.00030136,120]
[373554348,1753039192370,2964.75,0.00030136,120]
[373554349,1753039192684,480.0,0.00030136,120]
[373554350,1753039193428,762.28,0.00030136,120]
[373554351,1753039193574,715.59,0.00030136,120]
[373554352,1753039193607,1470.36,0.00030136,120]
[373554353,1753039194050,986.15,0.00030136,120]
[373554354,1753039194761,2224.97,0.00030136,120]
[373554355,1753039194816,821.18,0.00030136,120]
[373554356,1753039195697,480.0,0.00030136,120]
[373554357,1753039198668,480.0,0.00030136,120]
[373554358,1753039198767,1110.41,0.00030136,120]
[373554359,1753039198879,480.0,0.00030136,120]
[373554360,1753039198918,523.497268,0.00030136,120]
[373554361,1753039201006,1582.87,0.00030136,120]
[373554362,1753039201407,480.0,0.00030136,120]
[373554363,1753039201814,983.25,0.00030136,120]
[373554364,1753039202338,480.0,0.00030136,120]
[373554365,1753039203181,939.73,0.00030136,120]
[373554366,1753039204859,480.0,0.00030136,120]
[373554367,1753039204990,480.0,0.00030136,120]
[373554368,1753039205081,480.0,0.00030136,120]
[373554369,1753039205802,480.0,0.00030136,120]
[373554370,1753039205923,480.0,0.00030136,120]
[373554371,1753039206188,480.0,0.00030136,120]
[373554372,1753039206335,480.0,0.00030136,120]
[373554373,1753039207822,5678.93,0.00030136,120]
[373554374,1753039208786,480.0,0.00030136,120]
[373554375,1753039208875,1321.66,0.00030136,120]
[373554376,1753039208981,480.0,0.00030136,120]
[373554377,1753039210462,480.0,0.00030136,120]
[373554378,1753039211372,1569.93,0.00030136,120]
[373554379,1753039211582,970.25,0.00030136,120]
[373554380,1753039212104,480.0,0.00030136,120]
[373554381,1753039212272,598.35,0.00030136,120]
[373554382,1753039212491,480.0,0.00030136,120]
[373554383,1753039212779,1771.09,0.00030136,120]
[373554384,1753039213813,480.0,0.00030136,120]
[373554385,1753039214196,959.74,0.00030136,120]
[373554386,1753039214528,984.78,0.00030136,120]
[373554387,1753039215843,480.0,0.00030136,120]
[373554388,1753039215890,2389.94,0.00030136,120]
[373554389,1753039216467,966.72,0.00030136,120]
[373554390,1753039216960,480.0,0.00030136,120]
[373554391,1753039217105,525.92730038,0.00030136,120]
[373554392,1753039217408,480.0,0.00030136,120]
[373554393,1753039217467,1614.5,0.00030136,120]
[373554394,1753039217506,6938.0,0.00030136,120]
[373554395,1753039218915,480.0,0.00030136,120]
[373554396,1753039219338,642.14,0.00030136,120]
[373554397,1753039219802,480.0,0.00030136,120]
[373554398,1753039219850,480.0,0.00030136,120]
[373554399,1753039221866,480.0,0.00030136,120]
[373554400,1753039222955,1341.78,0.00030136,120]
[373554401,1753039223324,435.31886985,0.00030136,120]
[373554402,1753039223391,634.26,0.00030136,120]
[373554403,1753039223696,1560.47,0.00030136,120]
[373554404,1753039223771,480.0,0.00030136,120]
[373554405,1753039223876,460.0,0.00030136,120]
[373554406,1753039224630,480.0,0.00030136,120]
[373554407,1753039226723,480.0,0.00030136,120]
[373554408,1753039227398,4765.72,0.00030136,120]
[373554409,1753039227565,580.49,0.00030136,120]
[373554410,1753039229212,2689.7,0.00030136,120]
[373554411,1753039229248,480.0,0.00030136,120]
[373554412,1753039229337,1061.98,0.00030136,120]
[373554413,1753039229374,929.82,0.00030136,120]
[373554414,1753039229968,1313.0,0.00030136,120]
[373554415,1753039230665,480.0,0.00030136,120]
[373554416,1753039230755,4999.72,0.00030136,120]
[373554417,1753039231441,480.0,0.00030136,120]
[373554418,1753039232332,876.93,0.00030136,120]
[373554419,1753039232436,480.0,0.00030136,120]
[373554420,1753039235124,480.0,0.00030136,120]
[373554421,1753039235325,881.09,0.00030136,120]
[373554422,1753039236077,1051.02,0.00030136,120]
[373554423,1753039236182,950.31,0.00030136,120]
[373554424,1753039236429,2148.78,0.00030136,120]
[373554425,1753039236842,475.9228093,0.00030136,120]
[373554426,1753039237006,480.0,0.00030136,120]
[373554427,1753039237338,524.62854495,0.00030136,120]
[373554428,1753039238490,3080.57,0.00030136,120]
[373554429,1753039238811,1220.67,0.00030136,120]
[373554430,1753039239267,480.0,0.00030136,120]
[373554431,1753039239311,2827.52,0.00030136,120]
[373554432,1753039239487,480.0,0.00030136,120]
[373554433,1753039239562,47790.67,0.00030136,120]
[373554434,1753039241353,1000.0,0.00030136,120]
[373554435,1753039241463,480.0,0.00030136,120]
[373554436,1753039241753,2509.92,0.00030136,120]
[373554437,1753039243649,3303.16,0.00030136,120]
[373554438,1753039243918,480.0,0.00030136,120]
[373554439,1753039243999,2373.97,0.00030136,120]
[373554440,1753039244102,791.46,0.00030136,120]
[373554441,1753039244443,2473.25,0.00030136,120]
[373554442,1753039245031,1399.7,0.00030136,120]
[373554443,1753039245347,480.0,0.00030136,120]
[373554444,1753039245562,2833.73,0.00030136,120]
[373554445,1753039245603,510.83,0.00030136,120]
[373554446,1753039245853,510.83,0.00030136,120]
[373554447,1753039246108,510.83,0.00030136,120]
[373554448,1753039246411,510.83,0.00030136,120]
[373554449,1753039246700,510.83,0.00030136,120]
[373554450,1753039246831,841.91,0.00030136,120]
[373554451,1753039246893,510.83,0.00030136,120]
[373554452,1753039247112,510.83,0.00030136,120]
[373554453,1753039247151,480.0,0.00030136,120]
[373554454,1753039247191,1209.53,0.00030136,120]
[373554455,1753039247351,510.83,0.00030136,120]
[373554456,1753039247884,510.83,0.00030136,120]
[373554457,1753039248012,480.0,0.00030136,120]
[373554458,1753039248059,553.29966117,0.00030136,120]
[373554459,1753039248162,510.83,0.00030136,120]
[373554460,1753039248391,510.83,0.00030136,120]
[373554461,1753039248648,510.83,0.00030136,120]
[373554462,1753039248830,420.88907599,0.00030136,120]
[373554463,1753039248886,510.83,0.00030136,120]
[373554464,1753039249149,510.83,0.00030136,120]
[373554465,1753039249377,510.83,0.00030136,120]
[373554466,1753039249639,510.83,0.00030136,120]
[373554467,1753039249682,480.0,0.00030136,120]
[373554468,1753039249881,510.83,0.00030136,120]
[373554469,1753039250025,254.26623637,0.00030136,120]
[373554470,1753039250121,510.83,0.00030136,120]
[373554471,1753039250369,510.83,0.00030136,120]
[373554472,1753039250442,4543.69,0.00030136,120]
[373554473,1753039250644,510.83,0.00030136,120]
[373554474,1753039250884,510.83,0.00030136,120]
[373554475,1753039251113,510.83,0.00030136,120]
[373554476,1753039251165,480.0,0.00030136,120]
[373554477,1753039251352,510.83,0.00030136,120]
[373554478,1753039251607,510.84044006,0.00030136,120]
[373554479,1753039251660,480.0,0.00030136,120]
[373554480,1753039251847,480.0,0.00030136,120]
[373554481,1753039252654,242.56216144,0.00030136,120]
[373554482,1753039252705,480.0,0.00030136,120]
[373554483,1753039252808,480.0,0.00030136,120]
[373554484,1753039253191,480.0,0.00030136,120]
[373554485,1753039254622,1451.37,0.00030136,120]
[373554486,1753039254850,1673.75,0.00030136,120]
[373554487,1753039255224,1339.49,0.00030136,120]
[373554488,1753039255884,794.57,0.00030136,120]
[373554489,1753039256519,1362.3,0.00030136,120]
[373554490,1753039256565,480.0,0.00030136,120]
[373554491,1753039256859,480.0,0.00030136,120]
[373554492,1753039256898,480.0,0.00030136,120]
[373554493,1753039257377,871.07,0.00030136,120]
[373554494,1753039258503,480.0,0.00030136,120]
[373554495,1753039258573,665.72,0.00030136,120]
[373554496,1753039259727,480.0,0.00030136,120]
[373554497,1753039260093,532.56240337,0.00030136,120]
[373554498,1753039260431,383.86589039,0.00030136,120]
[373554499,1753039262198,9459.64,0.00030136,120]
[373554500,1753039262236,480.0,0.00030136,120]
[373554501,1753039262432,480.0,0.00030136,120]
[373554502,1753039263070,562.85,0.00030136,120]
[373554503,1753039263917,1066.23,0.00030136,120]
[373554504,1753039264086,480.0,0.00030136,120]
[373554505,1753039264125,948.04,0.00030136,120]
[373554506,1753039264800,2351.82,0.00030136,120]
[373554507,1753039266304,480.0,0.00030136,120]
[373554508,1753039267234,480.0,0.00030136,120]
[373554509,1753039269100,480.0,0.00030136,120]
[373554510,1753039269449,1702.0,0.00030136,120]
[373554511,1753039269625,480.0,0.00030136,120]
[373554512,1753039270488,1120.65,0.00030136,120]
[373554513,1753039270675,2285.85,0.00030136,120]
[373554514,1753039271125,924.72,0.00030136,120]
[373554515,1753039272519,480.0,0.00030136,120]
[373554516,1753039273430,480.0,0.00030136,120]
[373554517,1753039273482,1547.23,0.00030136,120]
[373554518,1753039274448,480.0,0.00030136,120]
[373554519,1753039275864,480.0,0.00030136,120]
[373554520,1753039276073,480.0,0.00030136,120]
[373554521,1753039276130,1066.03,0.00030136,120]
[373554522,1753039276620,1297.01,0.00030136,120]
[373554523,1753039276874,7585.27,0.00030136,120]
[373554524,1753039277653,480.0,0.00030136,120]
[373554525,1753039277715,480.0,0.00030136,120]
[373554526,1753039277858,3477.33,0.00030136,120]
[373554527,1753039281181,162.39145634,0.00030136,120]
[373554528,1753039281225,783.49,0.00030136,120]
[373554529,1753039281268,480.0,0.00030136,120]
[373554530,1753039281304,480.0,0.00030136,120]
[373554531,1753039281969,926.89,0.00030136,120]
[373554532,1753039282450,486.23150163,0.00030136,120]
[373554533,1753039283041,480.0,0.00030136,120]
[373554534,1753039283704,480.0,0.00030136,120]
[373554535,1753039283900,480.0,0.00030136,120]
[373554536,1753039284683,6953.17,0.00030136,120]
[373554537,1753039286032,2791.98,0.00030136,120]
[373554538,1753039286154,274.79998287,0.00030136,120]
[373554539,1753039286653,480.0,0.00030136,120]
[373554540,1753039287068,962.56,0.00030136,120]
[373554541,1753039287861,162.48462398,0.00030136,120]
[373554542,1753039288014,1138.42,0.00030136,120]
[373554543,1753039288779,1861.9,0.00030136,120]
[373554544,1753039288921,480.0,0.00030136,120]
[373554545,1753039289095,480.0,0.00030136,120]
[373554546,1753039289425,480.0,0.00030136,120]
[373554547,1753039290375,698.88,0.00030136,120]
[373554548,1753039291083,480.0,0.00030136,120]
[373554549,1753039291290,1269.02,0.00030136,120]
[373554550,1753039291351,480.0,0.00030136,120]
[373554551,1753039292332,460.0,0.00030136,120]
[373554552,1753039293080,500.0,0.00030136,120]
[373554553,1753039293141,1122.9,0.00030136,120]
[373554554,1753039293538,12575.03,0.00030136,120]
[373554555,1753039293825,480.0,0.00030136,120]
[373554556,1753039295051,615.21,0.00030136,120]
[373554557,1753039295610,480.0,0.00030136,120]
[373554558,1753039295676,2345.88,0.00030136,120]
[373554559,1753039296428,1545.18,0.00030136,120]
[373554560,1753039296773,2952.22,0.00030136,120]
[373554561,1753039296821,480.0,0.00030136,120]
[373554562,1753039296874,480.0,0.00030136,120]
[373554563,1753039297802,460.0,0.00030136,120]
[373554564,1753039297847,2131.01,0.00030136,120]
[373554565,1753039298233,648.6,0.00030136,120]
[373554566,1753039298678,480.0,0.00030136,120]
[373554567,1753039298936,480.0,0.00030136,120]
[373554568,1753039298979,5270.11,0.00030136,120]
[373554569,1753039299122,480.0,0.00030136,120]
[373554570,1753039299698,480.0,0.00030136,120]
[373554571,1753039300304,6274.37,0.00030136,120]
[373554572,1753039300802,448.74039489,0.00030136,120]
[373554573,1753039301325,480.0,0.00030136,120]
[373554574,1753039302684,480.0,0.00030136,120]
[373554575,1753039302909,329.36390546,0.00030136,120]
[373554576,1753039303299,480.0,0.00030136,120]
[373554577,1753039305034,480.0,0.00030136,120]
[373554578,1753039305212,480.0,0.00030136,120]
[373554579,1753039306033,480.0,0.00030136,120]
[373554580,1753039306070,480.0,0.00030136,120]
[373554581,1753039306108,4365.55,0.00030136,120]
[373554582,1753039306145,731.59,0.00030136,120]
[373554583,1753039306216,480.0,0.00030136,120]
[373554584,1753039309555,480.0,0.00030136,120]
[373554585,1753039310436,1189.03,0.00030136,120]
[373554586,1753039310474,1349.93,0.00030136,120]
[373554587,1753039311100,761.68,0.00030136,120]
[373554588,1753039311349,480.0,0.00030136,120]
[373554589,1753039311411,601.07,0.00030136,120]
[373554590,1753039312024,480.0,0.00030136,120]
[373554591,1753039312312,1765.15,0.00030136,120]
[373554592,1753039313594,311.96618965,0.00030136,120]
[373554593,1753039314365,416.13573418,0.00030136,120]
[373554594,1753039315836,772.11,0.00030136,120]
[373554595,1753039316178,480.0,0.00030136,120]
[373554596,1753039316538,1240.35,0.00030136,120]
[373554597,1753039318033,480.0,0.00030136,120]
[373554598,1753039318077,480.0,0.00030136,120]
[373554599,1753039319532,480.0,0.00030136,120]
[373554600,1753039320523,480.0,0.00030136,120]
[373554601,1753039321328,480.0,0.00030136,120]
[373554602,1753039321365,480.0,0.00030136,120]
[373554603,1753039321400,347.07153421,0.00030136,120]
[373554604,1753039322222,480.0,0.00030136,120]
[373554605,1753039323094,1632.89,0.00030136,120]
[373554606,1753039323539,480.0,0.00030136,120]
[373554607,1753039323723,2248.14,0.00030136,120]
[373554608,1753039324059,480.0,0.00030136,120]
[373554609,1753039324380,480.0,0.00030136,120]
[373554610,1753039325323,1480.79,0.00030136,120]
[373554611,1753039326002,1553.07,0.00030136,120]
[373554612,1753039326333,2419.33,0.00030136,120]
[373554613,1753039326554,2027.64,0.00030136,120]
[373554614,1753039326940,480.0,0.00030136,120]
[373554615,1753039328082,1042.38,0.00030136,120]
[373554616,1753039328153,942.29,0.00030136,120]
[373554617,1753039328793,1265.36,0.00030136,120]
[373554618,1753039329425,3060.81,0.00030136,120]
[373554619,1753039329474,7868.99,0.00030136,120]
[373554620,1753039330315,474.22185422,0.00030136,120]
[373554621,1753039330429,480.0,0.00030136,120]
[373554622,1753039330723,480.0,0.00030136,120]
[373554623,1753039334718,480.0,0.00030136,120]
[373554624,1753039335336,971.93,0.00030136,120]
[373554625,1753039335432,1380.23,0.00030136,120]
[373554626,1753039335562,480.0,0.00030136,120]
[373554627,1753039336210,1651.87,0.00030136,120]
[373554628,1753039336264,2051.75,0.00030136,120]
[373554629,1753039336432,878.62,0.00030136,120]
[373554630,1753039336624,494.23,0.00030136,120]
[373554631,1753039337631,5028.9,0.00030136,120]
[373554632,1753039337788,1348.81,0.00030136,120]
[373554633,1753039339705,480.0,0.00030136,120]
[373554634,1753039339882,1452.91,0.00030136,120]
[373554635,1753039340062,651.88,0.00030136,120]
[373554636,1753039340198,480.0,0.00030136,120]
[373554637,1753039340790,480.0,0.00030136,120]
[373554638,1753039341673,2774.48,0.00030136,120]
[373554639,1753039342886,480.0,0.00030136,120]
[373554640,1753039343306,480.0,0.00030136,120]
[373554641,1753039343873,482.29,0.00030136,120]
[373554642,1753039346991,480.0,0.00030136,120]
[373554643,1753039347435,1265.21,0.00030136,120]
[373554644,1753039347682,531.92,0.00030136,120]
[373554645,1753039348043,892.24,0.00030136,120]
[373554646,1753039348609,480.0,0.00030136,120]
[373554647,1753039349368,480.0,0.00030136,120]
[373554648,1753039350876,2318.52,0.00030136,120]
[373554649,1753039350915,1017.73,0.00030136,120]
[373554650,1753039351588,600.98,0.00030136,120]
[373554651,1753039351929,586.27,0.00030136,120]
[373554652,1753039353403,480.0,0.00030136,120]
[373554653,1753039353750,1331.88,0.00030136,120]
[373554654,1753039355516,360.0,0.00030136,120]
[373554655,1753039356125,1858.81,0.00030136,120]
[373554656,1753039356251,1789.57,0.00030136,120]
[373554658,1753039357280,1752.73,0.00030136,120]
[373554659,1753039357766,480.0,0.00030136,120]
[373554660,1753039358248,2086.23,0.00030136,120]
[373554661,1753039358459,1601.44,0.00030136,120]
[373554662,1753039358925,480.0,0.00030136,120]
[373554663,1753039360022,1070.1,0.00030136,120]
[373554664,1753039360244,480.0,0.00030136,120]
[373554665,1753039360792,538.98,0.00030136,120]
[373554666,1753039360846,212.10054373,0.00030136,120]
[373554667,1753039361963,834.24,0.00030136,120]
[373554668,1753039362004,1107.79,0.00030136,120]
[373554669,1753039362048,275.81,0.00013699,2]
[373554670,1753039362088,2389.72,0.00030136,120]
[373554671,1753039363308,685.77,0.00030136,120]
[373554672,1753039363419,643.68,0.00030136,120]
[373554673,1753039363733,1017.34,0.00030136,120]
[373554674,1753039364457,480.0,0.00030136,120]
[373554675,1753039366589,1129.92,0.00030136,120]
[373554676,1753039367122,480.0,0.00030136,120]
[373554677,1753039369512,1074.63,0.00030136,120]
[373554678,1753039369946,480.0,0.00030136,120]
[373554679,1753039370542,480.0,0.00030136,120]
[373554680,1753039370603,460.0,0.00030136,120]
[373554681,1753039370646,509.76,0.00030136,120]
[373554682,1753039371422,480.0,0.00030136,120]
[373554683,1753039372984,2644.08,0.00030136,120]
[373554684,1753039374190,480.0,0.00030136,120]
[373554685,1753039374837,508.96,0.00030136,120]
[373554686,1753039374886,480.0,0.00030136,120]
[373554687,1753039375212,480.0,0.00030136,120]
[373554688,1753039375354,480.0,0.00030136,120]
[373554689,1753039375389,480.0,0.00030136,120]
[373554690,1753039376173,1125.13,0.00030136,120]
[373554691,1753039376571,480.0,0.00030136,120]
[373554692,1753039378335,3449.42,0.00030136,120]
[373554693,1753039378726,778.79,0.00030136,120]
[373554694,1753039378819,3512.47,0.00030136,120]
[373554695,1753039378926,1480.75,0.00030136,120]
[373554696,1753039379053,488.01,0.00030136,120]
[373554697,1753039379427,1356.41,0.00030136,120]
[373554698,1753039379489,1535.2,0.00030136,120]
[373554699,1753039379720,480.0,0.00030136,120]
[373554700,1753039381363,1305.54,0.00030136,120]
[373554701,1753039382051,576.02,0.00030136,120]
[373554702,1753039383487,1662.97,0.00030136,120]
[373554703,1753039383692,480.0,0.00030136,120]
[373554704,1753039383920,664.17,0.00030136,120]
[373554705,1753039385202,2290.36,0.00030136,120]
[373554706,1753039385394,480.0,0.00030136,120]
[373554707,1753039385598,519.24,0.00030136,120]
[373554708,1753039386460,842.58,0.00030136,120]
[373554709,1753039387499,518.87,0.00030136,120]
[373554710,1753039387588,480.0,0.00030136,120]
[373554711,1753039387720,480.0,0.00030136,120]
[373554712,1753039387829,480.0,0.00030136,120]
[373554713,1753039392202,480.0,0.00030136,120]
[373554714,1753039392320,480.0,0.00030136,120]
[373554715,1753039392366,1184.64,0.00030136,120]
[373554716,1753039392402,1184.64,0.00030136,120]
[373554717,1753039394107,893.68,0.00030136,120]
[373554718,1753039394821,2810.13,0.00030136,120]
[373554719,1753039394864,378.3544309,0.00030136,120]
[373554720,1753039395093,500.0,0.00030137,120]
[373554721,1753039396751,480.0,0.00030136,120]
[373554722,1753039397238,480.0,0.00030136,120]
[373554723,1753039397278,1029.86,0.00030136,120]
[373554724,1753039397387,1008.78,0.00030136,120]
[373554725,1753039397425,480.0,0.00030136,120]
[373554726,1753039397988,480.0,0.00030136,120]
[373554727,1753039399184,512.750585,0.00030137,120]
[373554728,1753039399505,2577.63,0.00030136,120]
[373554729,1753039399738,225.0,0.00030136,120]
[373554730,1753039399890,2128.05,0.00030136,120]
[373554731,1753039400670,4011.99,0.00030136,120]
[373554732,1753039400786,480.0,0.00030136,120]
[373554733,1753039400944,447.67591663,0.00030136,120]
[373554734,1753039401440,480.0,0.00030136,120]
[373554735,1753039401486,7438.49,0.00030136,120]
[373554736,1753039402005,3152.94,0.00030136,120]
[373554737,1753039402709,8204.68,0.00030136,120]
[373554738,1753039403181,480.0,0.00030136,120]
[373554739,1753039403847,480.0,0.00030136,120]
[373554740,1753039404931,480.0,0.00030136,120]
[373554741,1753039405236,480.0,0.00030136,120]
[373554742,1753039406192,959.44,0.00030136,120]
[373554743,1753039406966,480.0,0.00030136,120]
[373554744,1753039407901,480.0,0.00030136,120]
[373554745,1753039408679,1505.16,0.00030136,120]
[373554746,1753039408782,45799.39,0.00030136,120]
[373554747,1753039409609,480.0,0.00030136,120]
[373554748,1753039409893,2446.11,0.00030136,120]
[373554749,1753039410242,2622.55,0.00030136,120]
[373554750,1753039411007,1392.37,0.00030136,120]
[373554751,1753039411535,1336.86,0.00030136,120]
[373554752,1753039413803,480.0,0.00030136,120]
[373554753,1753039415816,480.0,0.00030136,120]
[373554754,1753039416600,621.57,0.00030136,120]
[373554755,1753039416641,1675.3,0.00030136,120]
[373554756,1753039417166,480.0,0.00030136,120]
[373554757,1753039418268,480.0,0.00030136,120]
[373554758,1753039418879,324.26577048,0.00030136,120]
[373554759,1753039419033,480.0,0.00030136,120]
[373554760,1753039419078,2923.38,0.00030136,120]
[373554761,1753039419640,913.32,0.00030136,120]
[373554762,1753039420490,480.0,0.00030136,120]
[373554763,1753039420707,480.0,0.00030136,120]
[373554764,1753039421510,4354.37,0.00030136,120]
[373554765,1753039421579,538.59,0.00030136,120]
[373554766,1753039422545,480.0,0.00030136,120]
[373554767,1753039423754,606.13,0.00030136,120]
[373554768,1753039424158,2548.08,0.00030136,120]
[373554769,1753039424988,2122.39,0.00030136,120]
[373554770,1753039425226,480.0,0.00030136,120]
[373554771,1753039425357,555.31,0.00030136,120]
[373554772,1753039426319,793.62,0.00030136,120]
[373554773,1753039427467,480.0,0.00030136,120]
[373554774,1753039429044,5442.31,0.00030136,120]
[373554775,1753039429359,480.0,0.00030136,120]
[373554776,1753039429594,2039.38,0.00030136,120]
[373554777,1753039429650,480.0,0.00030136,120]
[373554778,1753039430167,480.0,0.00030136,120]
[373554779,1753039430242,2279.41,0.00030136,120]
[373554780,1753039430505,2759.06,0.00030136,120]
[373554781,1753039430552,1535.69,0.00030136,120]
[373554782,1753039430912,480.0,0.00030136,120]
[373554783,1753039430997,2562.26,0.00030136,120]
[373554784,1753039431515,516.52,0.00030136,120]
[373554785,1753039431723,480.0,0.00030136,120]
[373554786,1753039432251,480.0,0.00030136,120]
[373554787,1753039433068,1078.77,0.00030136,120]
[373554788,1753039433256,238.27212592,0.00030136,120]
[373554789,1753039434392,480.0,0.00030136,120]
[373554790,1753039434675,480.0,0.00030136,120]
[373554791,1753039436570,480.0,0.00030136,120]
[373554792,1753039437916,2841.21,0.00030136,120]
[373554793,1753039438378,480.0,0.00030136,120]
[373554794,1753039438743,480.0,0.00030136,120]
[373554795,1753039438895,1564.86,0.00030136,120]
[373554796,1753039439326,480.0,0.00030136,120]
[373554797,1753039440431,736.76,0.00030136,120]
[373554798,1753039441016,480.0,0.00030136,120]
[373554799,1753039441794,480.0,0.00030136,120]
[373554800,1753039443933,4567.14,0.00030136,120]
[373554801,1753039444333,1365.08,0.00030136,120]
[373554802,1753039444960,749.33,0.00030136,120]
[373554803,1753039445015,4659.89,0.00030136,120]
[373554804,1753039445360,480.0,0.00030136,120]
[373554805,1753039447743,480.0,0.00030136,120]
[373554806,1753039447789,480.0,0.00030136,120]
[373554807,1753039449025,2441.91,0.00030136,120]
[373554808,1753039451498,395.60784783,0.00030136,120]
[373554809,1753039451558,480.0,0.00030136,120]
[373554810,1753039451660,213.36,0.00030136,120]
[373554811,1753039451823,873.07,0.00030136,120]
[373554812,1753039451980,880.85,0.00030136,120]
[373554813,1753039453006,1471.23,0.00030136,120]
[373554814,1753039454489,712.51,0.00030136,120]
[373554815,1753039455969,1359.48,0.00030136,120]
[373554816,1753039456236,1064.14,0.00030136,120]
[373554817,1753039456605,1922.96,0.00030136,120]
[373554818,1753039456921,1827.41,0.00030136,120]
[373554819,1753039457136,2611.16,0.00030136,120]
[373554820,1753039457219,508.0,0.00030136,120]
[373554821,1753039457878,573.42,0.00030136,120]
[373554822,1753039458347,840.39,0.00030136,120]
[373554823,1753039459788,480.0,0.00030136,120]
[373554824,1753039460529,480.0,0.00030136,120]
[373554825,1753039461782,480.0,0.00030136,120]
[373554826,1753039462369,3623.15,0.00030136,120]
[373554827,1753039464269,674.7,0.00030136,120]
[373554828,1753039464525,1343.34,0.00030136,120]
[373554829,1753039466173,1690.41,0.00030136,120]
[373554830,1753039466688,450.49797752,0.00030136,120]
[373554831,1753039466744,750.98,0.00030136,120]
[373554832,1753039467638,4409.81,0.00030136,120]
[373554833,1753039468673,480.0,0.00030136,120]
[373554834,1753039469694,4465.73,0.00030136,120]
[373554835,1753039471082,1781.36,0.00030136,120]
[373554836,1753039471297,480.0,0.00030136,120]
[373554837,1753039472307,527.54,0.00030136,120]
[373554838,1753039475043,480.0,0.00030136,120]
[373554839,1753039475096,254.98,0.00030136,120]
[373554840,1753039475207,615.39,0.00030136,120]
[373554841,1753039476626,480.0,0.00030136,120]
[373554842,1753039476804,3021.57,0.00030136,120]
[373554843,1753039477273,2370.2,0.00030136,120]
[373554844,1753039477947,1266.59,0.00030136,120]
[373554845,1753039479040,480.0,0.00030136,120]